[Event "NJSK 2022 Meisjes A&B"]
[Site "Almelo, Netherlands"]
[Date "2022.05.03"]
[Round "3.1"]
[White "Den Heijer, Rolinde"]
[Black "Cordes, Jule"]
[Result "1/2-1/2"]
[TimeControl "90min/40moves + 30min + 30sec/move"]
[WhiteElo "1754"]
[BlackElo "1802"]

1. e4 {[%clk 01:30:58]} {[%emt 00:00:01]} e6 {[%clk 01:30:02]} {[%emt
00:00:59]} 2. d4 {[%clk 01:31:15]} {[%emt 00:00:12]} d5 {[%clk 01:30:25]}
{[%emt 00:00:08]} 3. Nc3 {[%clk 01:30:48]} {[%emt 00:00:56]} Nf6 {[%clk
01:30:34]} {[%emt 00:00:21]} 4. e5 {[%clk 01:30:39]} {[%emt 00:00:39]} Nfd7
{[%emt 00:00:58]} 5. f4 {[%clk 01:30:35]} c5 {[%clk 01:30:45]} {[%emt
00:00:25]} 6. Nf3 {[%clk 01:29:24]} {[%emt 00:01:40]} Nc6 {[%clk 01:30:19]}
{[%emt 00:00:57]} 7. Bb5 {[%clk 01:27:58]} {[%emt 00:01:57]} cxd4 {[%clk
01:29:05]} {[%emt 00:01:44]} 8. Nxd4 {[%clk 01:26:22]} {[%emt 00:02:05]} Nxd4
{[%clk 01:28:09]} {[%emt 00:01:26]} 9. Qxd4 {[%clk 01:26:26]} {[%emt 00:00:26]}
a6 {[%clk 01:28:02]} {[%emt 00:00:38]} 10. Bxd7+ {[%clk 01:25:51]} {[%emt
00:01:04]} Bxd7 {[%clk 01:27:56]} {[%emt 00:00:37]} 11. O-O {[%clk 01:24:53]}
{[%emt 00:01:26]} Rc8 {[%clk 01:27:42]} {[%emt 00:00:45]} 12. Kh1 {[%clk
01:24:27]} {[%emt 00:00:56]} Bc5 {[%clk 01:26:08]} {[%emt 00:02:04]} 13. Qd1
{[%clk 01:23:24]} {[%emt 00:01:32]} O-O {[%clk 01:22:02]} {[%emt 00:04:37]} 14.
Qh5 {[%clk 01:19:32]} {[%emt 00:04:21]} f6 {[%clk 01:17:39]} {[%emt 00:04:54]}
15. Bd2 {[%clk 01:13:32]} {[%emt 00:06:30]} Qb6 {[%clk 01:12:42]} {[%emt
00:05:28]} 16. Rab1 {[%clk 01:08:06]} {[%emt 00:05:56]} fxe5 {[%clk 01:01:53]}
{[%emt 00:11:19]} 17. Qxe5 {[%clk 01:06:03]} {[%emt 00:02:32]} Rf5 {[%clk
00:45:02]} {[%emt 00:17:21]} 18. Qe1 {[%clk 01:03:59]} {[%emt 00:02:33]} Rcf8
{[%clk 00:40:30]} {[%emt 00:05:03]} 19. Rf3 {[%clk 00:55:35]} {[%emt 00:08:54]}
Bd6 {[%clk 00:31:48]} {[%emt 00:09:13]} 20. Ne2 {[%clk 00:47:43]} {[%emt
00:08:21]} Bb8 {[%clk 00:20:10]} {[%emt 00:12:07]} 21. Ba5 {[%clk 00:39:25]}
{[%emt 00:08:49]} Qa7 {[%clk 00:18:15]} {[%emt 00:02:25]} 22. Qh4 {[%clk
00:27:36]} {[%emt 00:12:18]} Qc5 {[%clk 00:14:39]} {[%emt 00:04:07]} 23. Bc3
{[%clk 00:25:58]} {[%emt 00:02:08]} R5f7 {[%clk 00:01:41]} {[%emt 00:13:28]} 24.
Rg1 {[%clk 00:19:56]} {[%emt 00:06:31]} b5 {[%clk 00:01:28]} {[%emt 00:00:44]}
25. a3 {[%clk 00:18:32]} {[%emt 00:01:54]} Qc4 {[%clk 00:01:40]} {[%emt
00:00:18]} 26. Rh3 {[%clk 00:12:06]} {[%emt 00:06:56]} g6 {[%clk 00:02:03]}
{[%emt 00:00:07]} 27. Rd3 {[%clk 00:12:11]} {[%emt 00:00:24]} Bxf4 {[%clk
00:01:58]} {[%emt 00:00:36]} 28. Nxf4 {[%clk 00:11:10]} {[%emt 00:01:31]} Qxf4
{[%clk 00:01:21]} {[%emt 00:01:07]} 29. Qe1 {[%clk 00:11:05]} {[%emt 00:00:34]}
Qf2 {[%clk 00:01:07]} {[%emt 00:00:45]} 30. h3 {[%clk 00:09:45]} {[%emt
00:01:49]} Qxe1 {[%clk 00:00:39]} {[%emt 00:00:58]} 31. Bxe1 {[%clk 00:09:55]}
{[%emt 00:00:21]} Rc8 {[%clk 00:00:34]} {[%emt 00:00:36]} 32. c3 {[%clk
00:09:41]} {[%emt 00:00:43]} Rc4 {[%clk 00:00:47]} {[%emt 00:00:17]} 33. Bg3
{[%clk 00:09:34]} {[%emt 00:00:37]} Re4 {[%clk 00:00:59]} {[%emt 00:00:18]} 34.
Rd2 {[%clk 00:09:22]} {[%emt 00:00:42]} Rf5 {[%clk 00:00:48]} {[%emt 00:00:41]}
35. Rgd1 {[%clk 00:08:50]} {[%emt 00:01:01]} Bc6 {[%clk 00:00:43]} {[%emt
00:00:36]} 36. Rd4 {[%clk 00:08:41]} {[%emt 00:00:39]} Re2 {[%clk 00:00:47]}
{[%emt 00:00:26]} 37. R1d2 {[%clk 00:08:41]} {[%emt 00:00:30]} Re3 {[%clk
00:00:47]} {[%emt 00:00:30]} 38. R4d3 {[%clk 00:08:31]} {[%emt 00:00:40]} Re4
{[%clk 00:00:49]} {[%emt 00:00:28]} 39. Rd4 {[%clk 00:08:35]} {[%emt 00:00:25]}
Re3 {[%clk 00:00:46]} {[%emt 00:00:35]} 40. R4d3 {[%clk 00:08:50]} {[%emt
00:00:14]} Re4 {[%clk 00:00:59]} {[%emt 00:00:17]} 41. Rd4 {[%clk 00:09:09]}
{[%emt 00:00:10]} Rf1+ {[%clk 00:14:49]} {[%emt 00:16:40]} 42. Kh2 {[%clk
00:38:03]} {[%emt 00:01:36]} Re3 {[%clk 00:14:46]} {[%emt 00:00:34]} 43. Rf4
{[%clk 00:31:23]} {[%emt 00:07:09]} Ree1 {[%clk 00:11:23]} {[%emt 00:03:54]} 44.
Rxf1 {[%clk 00:26:48]} {[%emt 00:05:05]} Rxf1 {[%clk 00:11:45]} {[%emt
00:00:08]} 45. Rf2 {[%clk 00:26:06]} {[%emt 00:01:12]} Rxf2 {[%clk 00:10:59]}
{[%emt 00:01:16]} 46. Bxf2 {[%clk 00:26:17]} {[%emt 00:00:19]} e5 {[%clk
00:08:17]} {[%emt 00:03:11]} 47. Bg3 {[%clk 00:24:43]} {[%emt 00:02:04]} e4
{[%clk 00:08:33]} {[%emt 00:00:15]} 48. Bf2 {[%clk 00:23:33]} {[%emt 00:01:40]}
Kf7 {[%clk 00:08:35]} {[%emt 00:00:28]} 49. Kg3 {[%clk 00:23:45]} {[%emt
00:00:21]} g5 {[%clk 00:07:30]} {[%emt 00:01:32]} 50. h4 {[%clk 00:22:39]}
{[%emt 00:01:34]} Kg6 {[%clk 00:02:35]} {[%emt 00:05:26]} 1/2-1/2

[Event "NJSK 2022 Meisjes A&B"]
[Site "Almelo, Netherlands"]
[Date "2022.05.03"]
[Round "3.2"]
[White "Verheij, Dana"]
[Black "De Zoeten, Cato"]
[Result "1-0"]
[TimeControl "90min/40moves + 30min + 30sec/move"]
[WhiteElo "1828"]
[BlackElo "1915"]

1. e4 {[%clk 01:30:57]} {[%emt 00:00:03]} c5 {[%clk 01:26:46]} {[%emt
00:04:14]} 2. c3 {[%clk 01:31:16]} {[%emt 00:00:11]} Nf6 {[%clk 01:27:10]}
{[%emt 00:00:06]} 3. e5 {[%clk 01:31:37]} {[%emt 00:00:09]} Nd5 {[%clk
01:27:35]} {[%emt 00:00:05]} 4. Nf3 {[%clk 01:31:59]} {[%emt 00:00:08]} d6
{[%clk 01:27:02]} {[%emt 00:01:03]} 5. exd6 {[%clk 01:32:00]} {[%emt 00:00:29]}
e6 {[%clk 01:26:59]} {[%emt 00:00:33]} 6. g3 {[%clk 01:31:46]} {[%emt
00:00:44]} Bxd6 {[%clk 01:26:33]} {[%emt 00:00:56]} 7. Bg2 {[%clk 01:32:09]}
{[%emt 00:00:07]} O-O {[%clk 01:26:34]} {[%emt 00:00:29]} 8. O-O {[%clk
01:32:30]} {[%emt 00:00:09]} b6 {[%clk 01:26:06]} {[%emt 00:00:59]} 9. c4
{[%clk 01:19:30]} {[%emt 00:13:29]} Ne7 {[%clk 01:25:56]} {[%emt 00:00:40]} 10.
Ne5 {[%clk 01:14:11]} {[%emt 00:05:48]} Bxe5 {[%clk 01:26:19]} {[%emt
00:00:08]} 11. Bxa8 {[%clk 01:14:36]} {[%emt 00:00:05]} Nbc6 {[%clk 01:26:44]}
{[%emt 00:00:05]} 12. Bxc6 {[%clk 01:14:28]} {[%emt 00:00:38]} Nxc6 {[%clk
01:27:08]} {[%emt 00:00:06]} 13. Nc3 {[%clk 01:05:46]} {[%emt 00:09:13]} Bb7
{[%clk 01:22:00]} {[%emt 00:05:37]} 14. Re1 {[%clk 01:01:44]} {[%emt 00:04:32]}
Qf6 {[%clk 01:03:40]} {[%emt 00:18:50]} 15. Ne4 {[%clk 00:56:24]} {[%emt
00:05:50]} Qg6 {[%clk 00:54:53]} {[%emt 00:09:17]} 16. d3 {[%clk 00:51:26]}
{[%emt 00:05:28]} Rd8 {[%clk 00:45:15]} {[%emt 00:10:08]} 17. a3 {[%clk
00:48:16]} {[%emt 00:03:41]} f5 {[%clk 00:39:00]} {[%emt 00:06:45]} 18. Ng5
{[%clk 00:45:35]} {[%emt 00:03:10]} h6 {[%clk 00:27:42]} {[%emt 00:11:48]} 19.
Nf3 {[%clk 00:40:53]} {[%emt 00:05:13]} Bb8 {[%clk 00:27:25]} {[%emt 00:00:45]}
20. Qe2 {[%clk 00:30:50]} {[%emt 00:10:34]} e5 {[%clk 00:23:43]} {[%emt
00:04:12]} 21. Bd2 {[%clk 00:22:57]} {[%emt 00:08:24]} f4 {[%clk 00:15:06]}
{[%emt 00:09:07]} 22. Bc3 {[%clk 00:20:21]} {[%emt 00:03:06]} fxg3 {[%clk
00:14:07]} {[%emt 00:01:28]} 23. fxg3 {[%clk 00:18:14]} {[%emt 00:02:38]} Rxd3
{[%clk 00:08:23]} {[%emt 00:06:14]} 24. Bxe5 {[%clk 00:13:44]} {[%emt
00:04:59]} Rxf3 {[%clk 00:03:52]} {[%emt 00:05:02]} 25. Qxf3 {[%clk 00:11:38]}
{[%emt 00:02:36]} Bxe5 {[%clk 00:03:41]} {[%emt 00:00:40]} 26. Rxe5 {[%clk
00:07:55]} {[%emt 00:04:14]} Nxe5 {[%clk 00:03:14]} {[%emt 00:00:56]} 27. Qxb7
{[%clk 00:08:11]} {[%emt 00:00:14]} Qd6 {[%clk 00:02:24]} {[%emt 00:01:21]} 28.
Qd5+ {[%clk 00:07:00]} {[%emt 00:01:41]} Qxd5 {[%clk 00:02:44]} {[%emt
00:00:10]} 29. cxd5 {[%clk 00:07:27]} {[%emt 00:00:03]} Nf3+ {[%clk 00:03:00]}
{[%emt 00:00:14]} 30. Kg2 {[%clk 00:06:47]} {[%emt 00:01:10]} Nd4 {[%clk
00:03:24]} {[%emt 00:00:06]} 31. Re1 {[%clk 00:03:40]} {[%emt 00:03:35]} Kf7
{[%clk 00:03:28]} {[%emt 00:00:27]} 32. d6 {[%clk 00:02:21]} {[%emt 00:01:49]}
1-0

[Event "NJSK 2022 Meisjes A&B"]
[Site "Almelo, Netherlands"]
[Date "2022.05.03"]
[Round "3.3"]
[White "Honkoop, Stella"]
[Black "Van Essen, Marieke"]
[Result "1-0"]
[TimeControl "90min/40moves + 30min + 30sec/move"]
[WhiteElo "1711"]
[BlackElo "1728"]

1. d4 {[%clk 01:30:58]} {[%emt 00:00:03]} Nf6 {[%clk 01:30:56]} {[%emt
00:00:03]} 2. Bf4 {[%clk 01:31:22]} {[%emt 00:00:06]} g6 {[%clk 01:31:21]}
{[%emt 00:00:05]} 3. Nc3 {[%clk 01:30:52]} {[%emt 00:01:00]} d5 {[%clk
01:31:32]} {[%emt 00:00:20]} 4. e3 {[%clk 01:30:09]} {[%emt 00:01:13]} Bg7
{[%clk 01:31:51]} {[%emt 00:00:10]} 5. Bd3 {[%clk 01:26:53]} {[%emt 00:03:46]}
a6 {[%clk 01:28:15]} {[%emt 00:04:06]} 6. Nf3 {[%clk 01:22:52]} {[%emt
00:04:31]} O-O {[%clk 01:22:42]} {[%emt 00:06:03]} 7. h4 {[%clk 01:06:24]}
{[%emt 00:16:58]} Nc6 {[%clk 01:19:38]} {[%emt 00:03:34]} 8. Qd2 {[%emt
00:20:04]} Nb4 {[%clk 01:14:58]} 9. Be2 {[%clk 00:52:02]} {[%emt 00:00:28]} Bf5
{[%clk 01:12:18]} {[%emt 00:03:10]} 10. Bd1 {[%clk 00:47:52]} {[%emt 00:04:39]}
c5 {[%emt 00:17:58]} 11. Ne5 {[%clk 00:37:51]} {[%emt 00:10:29]} cxd4 {[%clk
00:47:49]} {[%emt 00:07:33]} 12. exd4 {[%clk 00:38:04]} {[%emt 00:00:18]} Qc8
{[%clk 00:38:07]} {[%emt 00:10:13]} 13. h5 {[%clk 00:28:28]} {[%emt 00:10:06]}
Nxh5 {[%clk 00:31:06]} {[%emt 00:07:30]} 14. Bh6 {[%clk 00:26:53]} {[%emt
00:02:05]} Bxh6 {[%clk 00:23:19]} {[%emt 00:08:16]} 15. Qxh6 {[%clk 00:27:01]}
{[%emt 00:00:22]} Bxc2 {[%clk 00:16:45]} {[%emt 00:07:05]} 16. Bxh5 {[%clk
00:21:08]} {[%emt 00:06:23]} gxh5 {[%clk 00:15:21]} {[%emt 00:01:54]} 17. Rxh5
{[%clk 00:19:05]} {[%emt 00:02:34]} Qe6 {[%clk 00:13:03]} {[%emt 00:02:47]} 18.
Rg5+ {[%clk 00:16:12]} {[%emt 00:03:23]} Kh8 {[%clk 00:11:28]} {[%emt
00:02:05]} 19. Qg7# {[%clk 00:15:56]} {[%emt 00:00:08]} 1-0

[Event "NJSK 2022 Meisjes A&B"]
[Site "Almelo, Netherlands"]
[Date "2022.05.03"]
[Round "3.4"]
[White "Mensing, Luana"]
[Black "Venema, Katja"]
[Result "1/2-1/2"]
[TimeControl "90min/40moves + 30min + 30sec/move"]
[WhiteElo "1604"]
[BlackElo "1692"]

1. e4 {[%clk 01:30:57]} {[%emt 00:00:03]} e6 {[%clk 01:30:54]} {[%emt
00:00:06]} 2. d4 {[%clk 01:31:08]} {[%emt 00:00:20]} d5 {[%clk 01:31:16]}
{[%emt 00:00:08]} 3. Nc3 {[%clk 01:31:21]} {[%emt 00:00:18]} Bb4 {[%clk
01:31:14]} {[%emt 00:00:32]} 4. e5 {[%clk 01:30:47]} {[%emt 00:01:04]} c5
{[%clk 01:30:34]} {[%emt 00:01:10]} 5. a3 {[%clk 01:27:41]} {[%emt 00:03:36]}
Bxc3+ {[%clk 01:28:26]} {[%emt 00:02:38]} 6. bxc3 {[%clk 01:27:42]} {[%emt
00:00:30]} Ne7 {[%clk 01:24:38]} {[%emt 00:04:17]} 7. Nh3 {[%clk 01:16:05]}
{[%emt 00:12:06]} Nbc6 {[%clk 01:15:07]} {[%emt 00:10:02]} 8. Ng5 {[%clk
00:46:07]} {[%emt 00:30:28]} Ng6 {[%clk 01:04:25]} {[%emt 00:11:12]} 9. Bd3
{[%clk 00:19:27]} {[%emt 00:27:09]} cxd4 {[%clk 00:55:14]} {[%emt 00:09:41]} 10.
Bxg6 {[%clk 00:17:08]} {[%emt 00:02:49]} hxg6 {[%clk 00:54:48]} {[%emt
00:00:56]} 11. cxd4 {[%clk 00:16:53]} {[%emt 00:00:45]} Rh5 {[%clk 00:45:46]}
{[%emt 00:09:32]} 12. h4 {[%clk 00:14:14]} {[%emt 00:03:09]} Bd7 {[%clk
00:42:34]} {[%emt 00:03:43]} 13. g4 {[%clk 00:09:54]} {[%emt 00:04:50]} Rh8
{[%clk 00:42:40]} {[%emt 00:00:23]} 14. Qd3 {[%clk 00:08:35]} {[%emt 00:01:49]}
Qe7 {[%clk 00:40:19]} {[%emt 00:02:51]} 15. Bb2 {[%clk 00:07:55]} {[%emt
00:01:10]} O-O-O {[%clk 00:38:20]} {[%emt 00:02:29]} 16. O-O-O {[%clk
00:06:56]} {[%emt 00:01:29]} Rxh4 {[%clk 00:37:17]} {[%emt 00:01:33]} 17. Nh3
{[%clk 00:05:54]} {[%emt 00:01:33]} Rxg4 {[%clk 00:34:59]} {[%emt 00:02:47]} 18.
Qf3 {[%clk 00:05:05]} {[%emt 00:01:20]} Rh4 {[%clk 00:34:06]} {[%emt 00:01:22]}
19. a4 {[%clk 00:03:28]} {[%emt 00:02:08]} Be8 {[%clk 00:31:15]} {[%emt
00:03:21]} 20. Ba3 {[%clk 00:03:24]} {[%emt 00:00:34]} Qc7 {[%clk 00:31:04]}
{[%emt 00:00:41]} 21. Qc3 {[%clk 00:02:21]} {[%emt 00:01:32]} Qa5 {[%clk
00:30:04]} {[%emt 00:01:31]} 22. Qxa5 {[%clk 00:02:38]} {[%emt 00:00:14]} Nxa5
{[%clk 00:30:31]} {[%emt 00:00:03]} 23. Be7 {[%clk 00:03:01]} {[%emt 00:00:07]}
Rh6 {[%clk 00:29:26]} {[%emt 00:01:34]} 24. Bxd8 {[%clk 00:03:19]} {[%emt
00:00:13]} Kxd8 {[%clk 00:29:42]} {[%emt 00:00:13]} 25. Ng5 {[%clk 00:03:12]}
{[%emt 00:00:37]} Ke7 {[%clk 00:29:22]} {[%emt 00:00:50]} 26. Rxh6 {[%clk
00:02:47]} {[%emt 00:00:55]} gxh6 {[%clk 00:29:45]} {[%emt 00:00:06]} 27. Nf3
{[%clk 00:02:47]} {[%emt 00:00:31]} Bxa4 {[%clk 00:29:45]} {[%emt 00:00:30]} 28.
Rh1 {[%clk 00:03:00]} {[%emt 00:00:16]} h5 {[%clk 00:30:00]} {[%emt 00:00:16]}
29. c3 {[%clk 00:03:06]} {[%emt 00:00:24]} Nc4 {[%clk 00:28:49]} {[%emt
00:01:42]} 30. Rh3 {[%clk 00:02:11]} {[%emt 00:01:25]} Bc6 {[%clk 00:28:16]}
{[%emt 00:01:03]} 31. Nd2 {[%clk 00:02:13]} {[%emt 00:00:27]} Nxd2 {[%emt
00:01:24]} 32. Kxd2 {[%clk 00:02:38]} {[%emt 00:00:03]} Bb5 {[%clk 00:26:49]}
{[%emt 00:01:05]} 33. f4 {[%clk 00:02:55]} {[%emt 00:00:12]} f6 {[%clk
00:26:13]} {[%emt 00:01:06]} 34. Rg3 {[%clk 00:02:16]} {[%emt 00:01:09]} Kf7
{[%clk 00:26:14]} {[%emt 00:00:28]} 35. Rg1 {[%clk 00:01:40]} {[%emt 00:01:07]}
a5 {[%clk 00:25:57]} {[%emt 00:00:48]} 36. Rb1 {[%clk 00:00:59]} {[%emt
00:01:11]} Bc6 {[%clk 00:26:20]} {[%emt 00:00:08]} 37. Kd3 {[%emt 00:01:02]} b5
{[%clk 00:56:20]} {[%emt 00:00:26]} 38. Ke3 {[%clk 00:30:23]} {[%emt 00:00:37]}
Kg7 {[%clk 00:55:57]} {[%emt 00:00:53]} 39. Rg1 {[%clk 00:30:10]} {[%emt
00:00:43]} a4 {[%clk 00:54:58]} {[%emt 00:01:29]} 40. Kf3 {[%clk 00:28:06]}
{[%emt 00:02:35]} Be8 {[%clk 00:53:14]} {[%emt 00:02:13]} 41. Rg2 {[%clk
00:24:09]} {[%emt 00:04:27]} f5 {[%clk 00:43:21]} {[%emt 00:10:23]} 42. Rg1
{[%clk 00:23:46]} {[%emt 00:00:53]} Kf7 {[%clk 00:42:51]} {[%emt 00:01:00]} 43.
Kg3 {[%clk 00:23:01]} {[%emt 00:01:15]} Ke7 {[%clk 00:43:06]} {[%emt 00:00:15]}
44. Kh4 {[%clk 00:23:25]} {[%emt 00:00:06]} Kf7 {[%clk 00:41:51]} {[%emt
00:01:44]} 45. Kg5 {[%clk 00:23:37]} {[%emt 00:00:19]} Kg7 {[%clk 00:42:13]}
{[%emt 00:00:09]} 46. Rg2 {[%clk 00:23:44]} {[%emt 00:00:22]} Bc6 {[%clk
00:38:25]} {[%emt 00:04:18]} 47. Rg1 {[%clk 00:23:52]} {[%emt 00:00:22]} Be8
{[%clk 00:37:13]} {[%emt 00:01:09]} 1/2-1/2

[Event "NJSK 2022 Meisjes A&B"]
[Site "Almelo, Netherlands"]
[Date "2022.05.03"]
[Round "3.5"]
[White "Martinez, Sara"]
[Black "Ganeshram, Nirupa"]
[Result "1-0"]
[TimeControl "90min/40moves + 30min + 30sec/move"]
[WhiteElo "1651"]
[BlackElo "1546"]

1. e4 {[%clk 01:26:23]} {[%emt 00:04:37]} c5 {[%clk 01:30:54]} {[%emt
00:00:07]} 2. Nf3 {[%clk 01:26:26]} {[%emt 00:00:27]} e6 {[%clk 01:31:12]}
{[%emt 00:00:12]} 3. d4 {[%clk 01:26:47]} {[%emt 00:00:09]} cxd4 {[%clk
01:31:34]} {[%emt 00:00:08]} 4. Nxd4 {[%clk 01:27:11]} {[%emt 00:00:06]} a6
{[%clk 01:31:47]} {[%emt 00:00:17]} 5. Be2 {[%clk 01:22:43]} {[%emt 00:04:58]}
Qc7 {[%clk 01:30:32]} {[%emt 00:01:45]} 6. a3 {[%clk 01:17:46]} {[%emt
00:05:27]} Nf6 {[%clk 01:24:34]} {[%emt 00:06:28]} 7. Nc3 {[%clk 01:13:10]}
{[%emt 00:05:05]} Nc6 {[%clk 01:18:02]} {[%emt 00:07:03]} 8. Be3 {[%clk
01:09:56]} {[%emt 00:03:44]} Bc5 {[%clk 01:15:06]} {[%emt 00:03:26]} 9. Nxe6
{[%clk 01:06:02]} {[%emt 00:04:24]} dxe6 {[%clk 01:07:39]} {[%emt 00:07:57]} 10.
Bxc5 {[%clk 01:06:23]} {[%emt 00:00:08]} Nxe4 {[%clk 00:54:20]} {[%emt
00:13:50]} 11. Nxe4 {[%clk 01:05:21]} {[%emt 00:01:32]} Qe5 {[%clk 00:52:37]}
{[%emt 00:02:13]} 12. Nd6+ {[%clk 01:05:19]} {[%emt 00:00:32]} Kd7 {[%clk
00:51:13]} {[%emt 00:01:55]} 13. Nc4+ {[%clk 01:05:01]} {[%emt 00:00:48]} Qd5
{[%clk 00:50:32]} {[%emt 00:01:10]} 14. Nb6+ {[%clk 01:05:25]} {[%emt
00:00:06]} Kc7 {[%clk 00:50:44]} {[%emt 00:00:18]} 15. Nxd5+ {[%clk 01:05:51]}
{[%emt 00:00:05]} exd5 {[%clk 00:50:54]} {[%emt 00:00:20]} 16. Qxd5 {[%clk
01:06:11]} {[%emt 00:00:09]} Rd8 {[%clk 00:50:00]} {[%emt 00:01:23]} 17. Qxf7+
{[%clk 01:06:24]} {[%emt 00:00:17]} Kb8 {[%clk 00:49:57]} {[%emt 00:00:34]} 18.
Qf4+ {[%clk 01:06:47]} {[%emt 00:00:07]} 1-0

[Event "NJSK 2022 Meisjes A&B"]
[Site "Almelo, Netherlands"]
[Date "2022.05.03"]
[Round "3.6"]
[White "Bogouslavskii, Veronique"]
[Black "Tangarife Ramirez, Katja"]
[Result "1-0"]
[TimeControl "90min/40moves + 30min + 30sec/move"]
[WhiteElo "1618"]
[BlackElo "1623"]

1. d4 {[%clk 01:30:56]} {[%emt 00:00:03]} d5 {[%clk 01:30:51]} {[%emt
00:00:09]} 2. e3 {[%clk 01:31:18]} {[%emt 00:00:07]} c6 {[%clk 01:30:45]}
{[%emt 00:00:36]} 3. Bd3 {[%clk 01:31:41]} {[%emt 00:00:08]} Nf6 {[%clk
01:30:45]} {[%emt 00:00:30]} 4. Nd2 {[%clk 01:31:58]} {[%emt 00:00:13]} e6
{[%clk 01:30:21]} {[%emt 00:00:54]} 5. f4 {[%clk 01:31:51]} {[%emt 00:00:38]}
Be7 {[%clk 01:29:34]} {[%emt 00:01:16]} 6. Ngf3 {[%clk 01:32:05]} {[%emt
00:00:16]} Nbd7 {[%clk 01:28:24]} {[%emt 00:01:41]} 7. O-O {[%clk 01:32:13]}
{[%emt 00:00:22]} O-O {[%clk 01:28:08]} {[%emt 00:00:46]} 8. c3 {[%clk
01:31:40]} {[%emt 00:01:04]} Qc7 {[%clk 01:23:45]} {[%emt 00:04:52]} 9. Ne5
{[%clk 01:29:09]} {[%emt 00:03:01]} c5 {[%clk 01:22:01]} {[%emt 00:02:14]} 10.
g4 {[%clk 01:24:26]} {[%emt 00:05:13]} Ne8 {[%clk 01:17:53]} {[%emt 00:04:38]}
11. g5 {[%clk 01:21:34]} {[%emt 00:03:22]} f5 {[%clk 01:11:32]} {[%emt
00:06:51]} 12. Qh5 {[%clk 00:58:45]} {[%emt 00:23:19]} Nxe5 {[%clk 01:04:43]}
{[%emt 00:07:19]} 13. fxe5 {[%clk 00:56:17]} {[%emt 00:02:58]} g6 {[%clk
01:03:35]} {[%emt 00:01:38]} 14. Qh6 {[%clk 00:53:53]} {[%emt 00:02:55]} cxd4
{[%clk 00:58:28]} {[%emt 00:05:37]} 15. exd4 {[%clk 00:53:29]} {[%emt
00:00:54]} Bd8 {[%clk 00:57:13]} {[%emt 00:01:44]} 16. Nf3 {[%clk 00:47:12]}
{[%emt 00:06:48]} Qg7 {[%clk 00:54:54]} {[%emt 00:02:50]} 17. Qxg7+ {[%clk
00:43:56]} {[%emt 00:03:45]} Nxg7 {[%clk 00:53:06]} {[%emt 00:02:17]} 18. h4
{[%clk 00:41:30]} {[%emt 00:02:57]} Nh5 {[%clk 00:48:27]} {[%emt 00:05:08]} 19.
Kg2 {[%clk 00:40:18]} {[%emt 00:01:42]} f4 {[%clk 00:45:18]} {[%emt 00:03:41]}
20. Nh2 {[%clk 00:29:54]} {[%emt 00:10:52]} Bd7 {[%clk 00:38:31]} {[%emt
00:07:18]} 21. Ng4 {[%clk 00:27:56]} {[%emt 00:02:28]} Bc7 {[%clk 00:34:37]}
{[%emt 00:04:24]} 22. Nf6+ {[%clk 00:27:02]} {[%emt 00:01:23]} Nxf6 {[%clk
00:34:57]} {[%emt 00:00:10]} 23. gxf6 {[%clk 00:27:12]} {[%emt 00:00:21]} b5
{[%clk 00:32:58]} {[%emt 00:02:29]} 24. Bxf4 {[%clk 00:26:33]} {[%emt
00:01:08]} Rab8 {[%clk 00:31:12]} {[%emt 00:02:17]} 25. Bh6 {[%clk 00:25:31]}
{[%emt 00:01:31]} Rf7 {[%clk 00:31:17]} {[%emt 00:00:26]} 26. a3 {[%clk
00:25:03]} {[%emt 00:00:58]} a5 {[%clk 00:30:33]} {[%emt 00:01:15]} 27. b4
{[%clk 00:24:58]} {[%emt 00:00:34]} Rc8 {[%clk 00:29:18]} {[%emt 00:01:45]} 28.
Rac1 {[%clk 00:21:49]} {[%emt 00:03:38]} Bb6 {[%clk 00:28:25]} {[%emt
00:01:24]} 29. Rg1 {[%clk 00:17:25]} {[%emt 00:04:54]} Be8 {[%clk 00:19:57]}
{[%emt 00:08:57]} 30. Kf3 {[%clk 00:12:37]} {[%emt 00:05:18]} Kh8 {[%clk
00:13:10]} {[%emt 00:07:18]} 31. h5 {[%clk 00:10:53]} {[%emt 00:02:14]} Rfc7
{[%clk 00:04:24]} {[%emt 00:09:15]} 32. Bd2 {[%clk 00:05:48]} {[%emt 00:05:35]}
gxh5 {[%clk 00:02:57]} {[%emt 00:01:57]} 33. Ra1 {[%clk 00:03:08]} {[%emt
00:03:09]} Bc6 {[%clk 00:01:55]} {[%emt 00:01:33]} 34. Rg5 {[%clk 00:03:05]}
{[%emt 00:00:33]} h4 {[%clk 00:01:47]} {[%emt 00:00:38]} 35. Rh5 {[%clk
00:03:14]} {[%emt 00:00:21]} Rg8 {[%clk 00:02:00]} {[%emt 00:00:17]} 36. Rxh4
{[%clk 00:03:33]} {[%emt 00:00:11]} Be8 {[%clk 00:02:10]} {[%emt 00:00:20]} 37.
Rah1 {[%clk 00:03:45]} {[%emt 00:00:17]} Bg6 {[%clk 00:02:21]} {[%emt
00:00:20]} 38. Bxb5 {[%clk 00:02:35]} {[%emt 00:01:41]} Be4+ {[%clk 00:02:33]}
{[%emt 00:00:18]} 39. Kf2 {[%clk 00:02:07]} {[%emt 00:00:58]} Bxh1 {[%clk
00:02:52]} {[%emt 00:00:10]} 40. Rxh1 {[%clk 00:02:24]} {[%emt 00:00:13]} axb4
{[%clk 00:02:53]} {[%emt 00:00:29]} 41. axb4 {[%clk 00:02:28]} {[%emt
00:00:26]} Ra8 {[%clk 00:00:35]} {[%emt 00:02:48]} 42. Be2 {[%clk 00:25:43]}
{[%emt 00:07:15]} Rg8 {[%clk 00:27:02]} {[%emt 00:04:02]} 43. Bh5 {[%clk
00:23:23]} {[%emt 00:02:51]} Ra8 {[%clk 00:23:18]} {[%emt 00:04:15]} 44. Ke2
{[%clk 00:21:04]} {[%emt 00:02:48]} Rcc8 {[%clk 00:20:07]} {[%emt 00:03:42]} 45.
f7 {[%clk 00:19:56]} {[%emt 00:01:37]} Ra2 {[%clk 00:12:49]} {[%emt 00:07:48]}
46. Bg4 {[%emt 00:12:24]} 1-0